bitfinex/quotes_ETHUSD_20251221
["timestamp","ask_amount","ask_price","bid_price","bid_amount"]
[1766334870158,3.35592992,2979.8,2979.3,0.001]
[1766334870365,0.437,2979.7,2979.3,0.001]
[1766334870560,0.37929299,2979.6,2979.3,0.001]
[1766334872085,0.437,2979.7,2979.3,0.001]
[1766334872289,3.06840353,2979.9,2979.3,0.001]
[1766334872449,3.06840353,2979.9,2979.3,2.9523]
[1766334872450,0.437,2979.9,2979.3,2.9523]
[1766334873553,3.49220308,2980.0,2979.3,2.9523]
[1766334873748,3.79474411,2980.0,2979.3,2.9523]
[1766334873962,3.79474411,2980.0,2979.3,0.001]
[1766334876885,3.79474411,2980.0,2979.3,2.8712]
[1766334877089,8.06742276,2980.0,2979.3,0.001]
[1766334878472,2.017,2979.8,2979.1,0.001]
[1766334879186,2.017,2979.6,2979.1,0.001]
[1766334879367,0.88635613,2979.5,2979.0,0.001]
[1766334881587,5.37338047,2979.4,2979.0,0.001]
[1766334881784,3.35638047,2979.4,2979.0,0.001]
[1766334885990,6.71276094,2979.4,2979.0,0.001]
[1766334886190,7.97786013,2979.4,2979.0,0.001]
[1766334887296,0.13448565,2979.5,2979.0,0.001]
[1766334887471,0.437,2979.6,2979.0,2.8712]
[1766334887789,3.79323512,2979.6,2979.0,2.8712]
[1766334888093,0.48018063,2979.5,2979.0,2.8712]
[1766334889801,3.79317739,2979.6,2979.0,2.8712]
[1766334890303,3.79317739,2979.6,2979.0,0.001]
[1766334890304,0.437,2979.6,2979.0,0.001]
[1766334890467,3.79316098,2979.6,2979.0,0.001]
[1766334890668,11.77080162,2979.6,2979.0,0.001]
[1766334891777,5.37330219,2979.5,2979.0,0.001]
[1766334892093,1.04317818,2979.4,2979.0,0.001]
[1766334899391,2.017,2979.5,2979.0,0.001]
[1766334901282,0.439,2979.6,2979.0,0.001]
[1766334901492,0.002,2979.6,2979.1,2.8702]
[1766334901782,0.002,2979.6,2979.3,2.1387]
[1766334902104,0.002,2979.6,2979.1,2.8702]
[1766334902310,0.002,2979.6,2979.3,0.7315]
[1766334902489,0.002,2979.6,2979.3,2.8702]
[1766334902890,0.002,2979.6,2979.0,0.001]
[1766334903090,0.002,2979.6,2979.1,2.8702]
[1766334903711,0.002,2979.6,2979.0,0.001]
[1766334903712,0.002,2979.6,2979.0,3.35781964]
[1766334903900,0.002,2979.6,2979.1,0.37968196]
[1766334904306,0.002,2979.6,2979.2,2.1387]
[1766334904490,0.002,2979.6,2979.3,2.8702]
[1766334907509,0.002,2979.6,2979.1,0.37968196]
[1766334907711,0.002,2979.6,2979.1,3.26138196]
[1766334907920,0.002,2979.6,2979.2,0.3262382]
[1766334909615,0.002,2979.6,2979.2,3.2079382]
[1766334910195,0.002,2979.6,2979.3,2.8817]
[1766334911923,0.002,2979.6,2979.2,0.3262382]
[1766334912123,2.456,2980.0,2979.3,2.157]
[1766334912124,0.002,2980.0,2979.3,2.157]
[1766334912424,3.35770957,2980.0,2979.4,2.8817]
[1766334912932,0.002,2979.6,2979.4,2.8817]
[1766334913910,0.002,2980.0,2979.4,2.8817]
[1766334914498,0.002,2980.0,2979.3,5.05714446]
[1766334914726,0.002,2980.0,2979.6,2.8817]
[1766334919034,0.002,2980.0,2979.7,2.8817]
[1766334919203,0.002,2980.3,2979.7,0.438]
[1766334919402,0.002,2980.3,2979.8,2.8817]
[1766334919607,0.002,2980.3,2979.7,0.438]
[1766334919909,0.002,2980.3,2979.9,2.8817]
[1766334921546,0.002,2980.3,2979.8,0.84132939]
[1766334921711,0.002,2980.0,2979.9,2.8817]
[1766334922520,0.002,2980.3,2979.9,2.8817]
[1766334922521,0.00173538,2980.3,2979.9,2.8817]
[1766334925849,0.00173538,2980.3,2979.7,0.438]
[1766334926035,0.00173538,2980.3,2979.9,0.7504]
[1766334926242,0.00173538,2980.3,2980.0,2.8929]
[1766334930058,0.00173538,2980.3,2980.1,2.8929]
[1766334935338,0.00173538,2980.3,2979.8,2.0746]
[1766334935528,0.00173538,2980.3,2979.7,0.438]
[1766334935529,0.00173538,2980.3,2979.9,2.7947]
[1766334936179,0.00173538,2980.3,2979.9,2.7957]
[1766334937574,0.00173538,2980.3,2979.9,0.001]
[1766334937760,0.58282606,2980.3,2979.9,0.001]
[1766334942374,0.58282606,2980.3,2979.9,2.7957]
[1766334942573,0.00173538,2980.3,2979.9,2.7957]
[1766334943275,0.00173538,2980.3,2980.0,2.7947]
[1766334944566,0.00173538,2980.3,2979.9,0.001]
[1766334945885,0.00173538,2980.3,2979.9,2.7957]
[1766334946064,0.00173538,2980.3,2980.0,2.7947]
[1766334948579,0.00173538,2980.3,2979.9,0.001]
[1766334948785,0.00173538,2980.3,2979.9,0.3367034]
[1766334949287,0.00173538,2980.3,2980.0,2.7947]
[1766334950369,0.00173538,2980.3,2979.9,0.001]
[1766334950880,0.00173538,2980.3,2979.8,2.7947]
[1766334951596,0.00173538,2980.3,2979.5,3.79423877]
[1766334951773,0.00173538,2980.3,2979.6,2.0746]
[1766334951962,0.00173538,2980.3,2979.9,0.7201]
[1766334952159,0.00173538,2980.3,2979.9,2.7947]
[1766334958184,0.00173538,2980.3,2979.9,3.35580814]
[1766334958386,0.00173538,2980.3,2980.1,2.7947]
[1766334958787,0.00173538,2980.3,2980.0,2.7947]
[1766334958998,0.00173538,2980.3,2980.2,2.7947]
[1766334959399,0.002,2980.6,2980.1,0.65885081]
[1766334959983,0.002,2980.6,2980.2,2.7947]
[1766334960194,0.002,2980.6,2980.2,3.35545482]
[1766334960368,0.002,2980.6,2980.4,0.7201]
[1766334960697,0.002,2980.6,2980.5,2.7947]
[1766334961695,0.002,2980.6,2980.4,0.40755548]
[1766334961910,0.002,2980.3,2980.1,3.45355081]
[1766334962196,0.002,2980.3,2980.1,0.60885081]
[1766334962400,0.002,2980.3,2980.2,2.7947]
[1766334966596,0.002,2980.8,2980.4,2.1199]
[1766334966800,0.002,2980.8,2980.5,2.8445]
[1766334970906,0.002,2980.8,2980.3,3.79332218]
[1766334971201,0.002,2980.8,2980.6,2.8445]
[1766334971990,0.002,2981.0,2980.4,0.37933222]
[1766334972184,0.002,2981.0,2980.6,0.7246]
[1766334972484,0.002,2981.0,2980.6,2.8445]
[1766334973603,0.002,2981.0,2980.4,0.37933222]
[1766334973805,0.002,2981.0,2980.8,2.8445]
[1766334974103,0.002,2981.0,2980.6,0.7246]
[1766334974300,0.002,2981.0,2980.6,2.8445]
[1766334974501,0.002,2981.0,2980.7,0.28445]
[1766334977811,0.002,2981.0,2980.4,3.66183222]
[1766334978109,0.002,2981.0,2980.5,2.8445]
[1766334978577,0.002,2981.0,2980.5,2.1199]
[1766334978777,0.002,2981.0,2980.6,2.8445]
[1766334983506,0.002,2981.0,2980.6,2.1199]
[1766334983710,0.002,2981.0,2980.8,2.8445]
[1766334986092,0.002,2981.0,2980.8,2.1199]
[1766334986398,0.13638715,2981.5,2981.1,0.7246]
[1766334986603,0.002,2981.0,2980.8,0.438]
[1766334987196,0.002,2981.0,2980.8,0.76625]
[1766334987598,0.002,2981.0,2980.8,3.61075]
[1766334988900,0.002,2981.0,2980.8,0.76625]
[1766334989106,0.002,2981.0,2980.9,2.8445]
[1766334990025,0.002,2981.5,2980.9,2.8445]
[1766334990325,4.61798297,2981.3,2980.6,0.438]
[1766334990541,4.61798297,2981.3,2980.1,2.8455]
[1766334990542,7.07198297,2981.3,2980.1,2.8455]
[1766334990700,7.07198297,2981.3,2980.2,0.438]
[1766334990901,0.7071983,2981.2,2980.2,0.438]
[1766334991102,1.71522047,2981.2,2980.2,0.438]
[1766334992301,5.06965814,2981.2,2980.2,0.438]
[1766334992706,5.06965814,2981.2,2980.2,3.2112]
[1766334994129,5.07165814,2981.2,2980.3,2.7732]
[1766334994434,1.21427222,2981.1,2980.2,3.79346097]
[1766334994737,1.11427222,2981.1,2980.3,2.7732]
[1766334996337,1.11427222,2981.1,2980.2,3.79346097]
[1766334996512,1.11427222,2981.1,2980.3,2.7328]
[1766334996712,1.11427222,2981.1,2980.2,3.79346097]
[1766334996907,1.11427222,2981.1,2980.2,4.50847666]
[1766334997421,1.11427222,2981.1,2980.4,0.7199]
[1766334997622,1.11427222,2981.1,2980.4,2.7328]
[1766334998748,4.46876506,2981.1,2980.4,2.7328]
[1766334998910,4.46876506,2981.1,2980.2,0.438]
[1766334999111,0.54787872,2981.0,2980.2,3.1708]
[1766334999612,0.54787872,2981.0,2980.2,3.08693272]
[1766335000982,0.54987872,2981.0,2980.2,3.08693272]
[1766335001387,3.90453406,2981.0,2980.2,0.35413272]
[1766335001548,3.90453406,2981.0,2979.8,3.74182217]
[1766335001549,4.6170641,2980.6,2979.8,3.74182217]
[1766335001977,4.6170641,2980.6,2979.8,2.7338]
[1766335003382,3.35514175,2980.5,2979.8,2.7338]
[1766335003605,3.35514175,2980.5,2978.9,0.001]
[1766335003606,4.6170641,2980.3,2978.9,0.001]
[1766335003889,0.46170641,2980.2,2979.2,2.7328]
[1766335004064,4.61994082,2980.1,2979.3,0.7199]
[1766335004264,4.61994082,2980.1,2979.3,2.7328]
[1766335004864,0.46170641,2980.2,2979.3,2.7328]
[1766335005194,1.00830676,2980.3,2979.5,3.35623734]
[1766335005558,1.00830676,2980.3,2979.6,2.7328]
[1766335005765,0.437,2980.4,2979.5,3.79423734]
[1766335005965,1.44523899,2980.4,2979.8,2.7328]
[1766335008878,1.44523899,2980.4,2979.8,2.7338]
[1766335009086,2.58897221,2980.4,2979.8,2.7338]
[1766335011595,5.9442536,2980.4,2979.8,2.7338]
[1766335011897,4.61994082,2980.3,2979.8,0.001]
[1766335012798,5.9442536,2980.4,2979.8,0.001]
[1766335013802,4.61994082,2980.2,2979.2,6.08937064]
[1766335013970,4.61994082,2979.9,2979.2,2.7328]
[1766335014991,1.00839827,2980.0,2979.2,2.7328]
[1766335021520,1.00839827,2980.0,2979.3,2.0129]
[1766335021691,6.46,2980.2,2979.8,2.0129]
[1766335021896,7.42227332,2980.2,2979.8,2.7328]
[1766335022505,7.42227332,2980.2,2979.6,3.1708]
[1766335022701,6.46,2980.2,2979.6,3.1708]
[1766335023838,9.81553669,2980.2,2979.6,0.438]
[1766335024415,17.7910142,2980.2,2979.3,2.7328]
[1766335024610,17.7910142,2980.2,2979.3,3.1708]
[1766335024798,18.79936163,2980.2,2979.3,3.1708]
[1766335024999,1.87993616,2980.1,2979.3,0.438]
[1766335025426,4.61994082,2980.0,2979.2,2.7464]
[1766335025815,3.3558173,2979.9,2979.2,2.7464]
[1766335026114,3.3558173,2979.9,2979.1,0.001]
[1766335026300,3.3558173,2979.9,2979.1,0.439]
[1766335026500,1.13314651,2979.8,2979.1,3.1854]
[1766335031633,2.017,2979.8,2979.1,3.1854]
[1766335031839,3.3558173,2979.9,2979.1,3.1854]
[1766335032637,5.37273493,2980.0,2979.2,2.7464]
[1766335034859,5.37373493,2980.0,2979.1,0.439]
[1766335035914,5.37373493,2980.0,2979.1,3.1854]
[1766335036147,1.66747252,2979.9,2979.1,3.1854]
[1766335039345,5.02337387,2979.9,2979.1,3.1854]
[1766335043235,5.02437387,2979.9,2979.1,3.1854]
[1766335045149,5.02437387,2979.9,2979.2,2.7464]
[1766335047218,5.02437387,2979.9,2979.6,0.7331]
[1766335047219,0.001,2979.9,2979.6,0.7331]
[1766335047422,0.001,2980.0,2979.8,2.7464]
[1766335048927,0.001,2980.0,2979.5,0.438]
[1766335049121,0.001,2980.0,2979.2,2.7464]
[1766335049122,3.35672642,2980.0,2979.2,2.7464]
[1766335049327,3.35672642,2980.0,2979.3,0.27474]
[1766335051553,3.79372642,2980.0,2979.3,0.27474]
[1766335052553,0.438,2980.0,2979.3,0.27474]
[1766335052757,0.438,2980.0,2979.4,2.8042]
[1766335054372,0.001,2980.0,2979.4,3.35637636]
[1766335054665,0.001,2980.0,2979.8,0.7441]
[1766335054840,0.001,2980.0,2979.7,2.0601]
[1766335055039,0.001,2980.0,2979.7,2.7781]
[1766335055240,0.001,2980.0,2979.3,2.836]
[1766335055542,0.001,2980.0,2979.5,2.836]
[1766335055741,0.001,2980.0,2979.4,0.3274]
[1766335055934,0.001,2980.0,2979.3,0.438]
[1766335055935,4.62101494,2980.0,2979.3,0.438]
[1766335056334,0.001,2980.0,2979.3,0.438]
[1766335057762,0.001,2980.0,2979.4,2.836]
[1766335059134,0.001,2980.0,2979.3,0.438]
[1766335059330,0.001,2980.0,2979.3,3.79448979]
[1766335059536,0.001,2980.0,2979.9,2.118]
[1766335059737,0.001,2980.0,2979.9,2.836]
[1766335059937,0.001,2980.0,2979.5,2.118]
[1766335060165,0.001,2980.0,2979.7,2.836]
[1766335061941,0.001,2980.0,2979.4,4.99946392]
[1766335062140,0.001,2980.0,2979.7,2.836]
[1766335067143,0.001,2980.0,2979.6,3.35613811]
[1766335067344,0.002,2980.4,2979.8,2.836]
[1766335068460,0.002,2980.4,2979.6,2.836]
[1766335068660,0.002,2980.4,2979.6,2.118]
[1766335068946,0.002,2980.4,2979.7,3.4378099]
[1766335070879,0.002,2980.4,2979.7,3.95784137]
[1766335071067,0.002,2980.4,2979.8,2.836]
[1766335076684,0.002,2980.4,2979.8,2.837]
[1766335080659,0.002,2980.4,2979.8,0.001]
[1766335080862,0.2456,2980.3,2979.8,0.001]
[1766335081066,0.002,2980.4,2979.8,0.001]
[1766335082482,0.002,2980.4,2979.8,2.837]
[1766335083293,2.019,2980.4,2979.8,2.837]
[1766335085798,5.37425476,2980.4,2979.8,0.001]
[1766335085956,2.019,2980.4,2979.8,0.001]
[1766335086153,2.60011857,2980.4,2979.8,0.001]
[1766335089071,2.60011857,2980.4,2979.8,2.7976]
[1766335093511,6.46,2980.7,2979.8,6.71281633]
[1766335093663,6.46,2980.7,2979.9,2.7966]
[1766335093869,6.46,2980.7,2980.3,2.7966]
[1766335094064,4.61694786,2980.5,2979.4,2.7966]
[1766335094291,0.89869479,2980.4,2979.4,3.7943395]
[1766335094504,2.454,2980.4,2979.6,0.6873]
[1766335096102,5.80934737,2980.4,2979.6,0.6873]
[1766335097194,2.454,2980.4,2979.6,0.6873]
[1766335097570,2.454,2980.4,2979.7,2.1093]
[1766335097770,2.454,2980.4,2979.7,2.7966]
[1766335097971,0.58091605,2980.3,2979.7,2.7966]
[1766335100903,5.80926885,2980.4,2979.7,2.7966]
[1766335102299,5.80926885,2980.4,2979.6,0.001]
[1766335102300,2.454,2980.4,2979.6,0.001]
[1766335102598,2.456,2980.4,2979.8,0.6873]
[1766335102905,2.456,2980.4,2979.8,2.7966]
[1766335108113,5.81127954,2980.4,2979.6,2.7976]
[1766335108316,6.72791231,2980.4,2979.6,2.7976]
[1766335113638,11.34694263,2980.4,2979.6,2.7976]
[1766335114048,14.70222217,2980.4,2979.6,0.001]
[1766335114233,4.61903032,2980.1,2979.5,0.001]
[1766335114445,0.46190303,2980.0,2979.5,0.001]
[1766335115561,3.81766187,2980.0,2979.5,0.001]
[1766335116344,0.46190303,2980.0,2979.3,2.7976]
[1766335116540,0.46190303,2980.0,2979.3,0.001]
[1766335116915,0.46190303,2980.0,2979.3,2.7133]
[1766335117217,4.61903032,2979.8,2979.3,2.7133]
[1766335117424,4.61903032,2979.8,2979.1,0.439]
[1766335117425,4.61903032,2979.5,2979.0,2.7133]
[1766335117624,5.05603032,2979.5,2978.8,0.13545265]
[1766335117865,0.50560303,2979.4,2978.8,0.13545265]
[1766335118074,0.50560303,2979.4,2978.8,0.001]
[1766335119668,0.50560303,2979.4,2978.8,2.7133]
[1766335119864,0.50560303,2979.4,2978.8,2.7123]
[1766335120074,0.50560303,2979.4,2978.9,0.001]
[1766335120242,5.05603032,2979.5,2978.9,0.001]
[1766335121882,0.437,2979.5,2978.9,2.7133]
[1766335123547,2.017,2979.4,2978.9,2.7133]
[1766335123870,0.437,2979.5,2978.9,2.7133]
[1766335124271,0.437,2979.5,2979.0,2.7123]
[1766335125863,2.017,2979.6,2979.0,2.7123]
[1766335126063,4.09919813,2979.6,2979.0,2.7123]
[1766335127082,0.437,2979.6,2979.3,2.7123]
[1766335127293,6.46,2979.7,2979.0,3.3568099]
[1766335127581,0.002,2980.0,2979.0,3.3568099]
[1766335127582,4.61903032,2979.9,2979.2,0.438]
[1766335128084,4.62066937,2979.7,2979.2,0.438]
[1766335128250,4.62066937,2979.7,2979.3,2.7123]
[1766335129072,4.62066937,2979.4,2978.9,0.001]
[1766335129246,4.62066937,2979.1,2978.9,0.001]
[1766335130274,4.62066937,2979.3,2978.9,0.001]
[1766335131946,4.62066937,2979.5,2978.9,0.001]
[1766335133849,4.62066937,2979.3,2978.9,0.001]
[1766335134086,2.017,2979.6,2978.9,0.27243]
[1766335134248,2.454,2979.6,2978.9,0.27243]
[1766335134765,2.454,2979.6,2979.0,2.7123]
[1766335135075,0.001,2979.3,2979.0,2.7123]
[1766335135372,0.437,2979.6,2979.2,2.7123]
[1766335136464,0.437,2979.6,2979.2,2.98353]
[1766335137249,2.454,2979.9,2979.4,0.7448]
[1766335137445,0.002,2980.0,2979.1,3.35671029]
[1766335137661,0.002,2980.0,2979.2,3.3566006]
[1766335137862,0.002,2980.0,2979.5,2.7123]
[1766335140381,0.002,2980.0,2979.3,1.9675]
[1766335140570,0.002,2980.0,2979.3,2.7123]
[1766335140977,0.002,2980.0,2979.0,3.79481121]
[1766335141149,0.002,2980.0,2979.1,0.40672412]
[1766335141349,0.002,2980.0,2979.2,2.7123]
[1766335142888,0.002,2980.0,2979.1,5.05866937]
[1766335143186,0.002,2980.0,2979.4,0.7448]
[1766335143356,0.002,2980.0,2979.4,2.7123]
[1766335143691,0.002,2980.0,2979.4,3.31919058]
[1766335144384,0.002,2980.0,2979.2,2.7123]
[1766335144684,0.002,2980.0,2979.3,0.7448]
[1766335144853,0.002,2980.0,2979.3,2.7123]
[1766335145264,0.002,2980.0,2979.2,2.9097]
[1766335145478,0.002,2980.0,2979.3,0.6996]
[1766335145676,0.002,2980.0,2979.4,2.2101]
[1766335145985,0.002,2980.0,2979.6,2.9097]
[1766335146155,0.58316252,2980.0,2979.1,3.79469235]
[1766335146355,0.002,2980.0,2979.1,3.79469235]
[1766335146555,0.002,2980.0,2979.3,0.6996]
[1766335146755,3.35771828,2980.0,2979.5,0.6996]
[1766335146954,0.002,2980.0,2979.1,0.438]
[1766335147157,0.002,2980.0,2979.4,2.2101]
[1766335147382,1.04522951,2980.0,2979.5,2.9097]
[1766335147762,1.04522951,2980.0,2979.1,0.438]
[1766335148073,1.04522951,2980.0,2979.4,2.9097]
[1766335154084,2.017,2979.9,2979.4,2.9097]
[1766335155178,2.017,2979.9,2979.1,3.3477]
[1766335155506,2.702497,2979.9,2979.1,3.3477]
[1766335155706,2.702497,2979.9,2979.2,2.9097]
[1766335156090,2.702497,2979.9,2979.1,0.438]
[1766335156295,2.019,2980.0,2979.2,2.9097]
[1766335156508,2.019,2980.0,2979.3,0.6996]
[1766335156808,2.019,2980.0,2979.4,2.9097]
[1766335157504,2.019,2980.0,2979.1,0.438]
[1766335157703,2.019,2980.0,2979.1,3.79463043]
[1766335157892,2.019,2980.0,2979.3,0.6996]
[1766335158093,0.002,2980.0,2979.5,0.6996]
[1766335158277,0.002,2980.0,2979.2,3.35659288]
[1766335158471,0.002,2980.0,2979.3,2.2101]
[1766335158675,0.002,2980.0,2979.5,2.2101]
[1766335158875,0.002,2980.0,2979.7,2.9097]
[1766335159403,0.38145441,2980.0,2979.7,2.9097]
[1766335161006,0.002,2980.0,2979.7,2.9097]
[1766335163813,0.002,2980.0,2979.2,2.9097]
[1766335164009,0.002,2980.0,2979.3,0.6996]
[1766335164222,6.63643851,2979.9,2979.0,2.9117]
[1766335164398,6.63643851,2979.9,2979.0,0.002]
[1766335164600,2.017,2979.7,2979.0,0.002]
[1766335164822,0.437,2979.6,2979.0,0.002]
[1766335165496,0.437,2979.6,2979.3,0.001]
[1766335166029,3.35626783,2979.5,2979.3,0.001]
[1766335169224,11.33197417,2979.5,2979.0,0.002]
[1766335169401,1.17689742,2979.4,2979.0,0.002]
[1766335170421,3.35626783,2979.5,2979.0,0.002]
[1766335173220,6.71253566,2979.5,2979.0,0.002]
[1766335173721,3.35626783,2979.5,2979.0,0.002]
[1766335174224,2.017,2979.4,2979.0,0.002]
[1766335175028,3.35649313,2979.3,2979.0,0.002]
[1766335175230,1.3349313,2979.2,2979.0,0.002]
[1766335177713,1.7729313,2979.2,2978.9,0.001]
[1766335180034,5.12955023,2979.2,2978.9,0.001]
[1766335180242,5.12955023,2979.2,2978.7,0.001]
[1766335181210,4.61943851,2979.0,2978.5,0.001]
[1766335181415,0.46194385,2978.9,2978.5,0.001]
[1766335181626,0.438,2978.8,2978.5,0.001]
[1766335183144,0.438,2978.8,2978.5,2.8349]
[1766335184827,0.438,2978.8,2978.5,0.001]
[1766335187230,0.438,2978.8,2978.6,2.8339]
[1766335187436,0.438,2978.9,2978.6,2.8339]
[1766335187639,0.6835,2978.9,2978.6,2.8339]
[1766335188364,0.6835,2978.9,2978.4,0.001]
[1766335188667,3.35705653,2978.8,2978.4,0.001]
[1766335189344,3.35705653,2978.8,2978.5,0.002]
[1766335190154,0.2455,2978.9,2978.5,2.8359]
[1766335190359,0.438,2978.8,2978.5,2.8359]
[1766335190659,0.6835,2978.9,2978.6,2.8339]
[1766335190867,0.40404282,2978.8,2978.6,2.8339]
[1766335191066,0.438,2978.9,2978.6,2.8339]
[1766335192372,0.438,2978.9,2978.5,0.002]
[1766335192534,3.79560939,2979.2,2978.8,2.8339]
[1766335192864,3.79560939,2979.2,2978.5,0.002]
[1766335193067,3.79560939,2979.2,2978.6,2.8339]
[1766335194266,4.71250862,2979.2,2978.6,2.8339]
[1766335194466,2.017,2979.1,2978.6,2.8339]
[1766335194668,4.71250862,2979.2,2978.6,2.8339]
[1766335197948,4.71250862,2979.2,2978.3,0.439]
[1766335197949,2.017,2978.9,2978.3,0.001]
[1766335198151,1.10192669,2978.8,2978.0,0.001]
[1766335198350,1.10192669,2978.8,2978.0,2.8349]
[1766335198578,0.438,2978.8,2978.0,2.8349]
[1766335198976,0.438,2978.8,2978.1,2.8349]
[1766335199186,3.79515201,2978.8,2978.1,2.8349]
[1766335201173,3.79515201,2978.8,2978.1,0.001]
[1766335201990,9.16930402,2978.8,2978.1,0.001]
[1766335202291,7.55619727,2978.7,2977.8,0.001]
[1766335202494,8.565223,2978.7,2977.8,0.001]
[1766335202795,3.94295613,2978.7,2977.9,2.8339]
[1766335203296,5.2831507,2978.7,2978.0,0.002]
[1766335203485,5.2831507,2978.7,2978.1,2.8339]
[1766335203791,2.79081507,2978.6,2978.1,2.8339]
[1766335203993,0.77381507,2978.6,2978.1,2.8339]
[1766335204772,3.79519457,2978.7,2978.1,2.8339]
[1766335205898,0.17545398,2979.1,2978.5,0.7524]
[1766335206192,0.438,2979.8,2979.1,2.7841]
[1766335206392,0.438,2979.8,2979.0,0.7524]
[1766335206596,0.438,2979.8,2979.3,2.7841]
[1766335206766,0.58108173,2979.7,2979.3,2.7841]
[1766335206968,3.35772609,2980.0,2979.1,2.0317]
[1766335207286,3.35772609,2980.0,2979.3,2.7841]
[1766335207867,6.71345218,2980.0,2979.3,2.7841]
[1766335208774,3.35772609,2980.0,2979.3,2.7841]
[1766335208978,0.002,2980.0,2979.2,0.7524]
[1766335209180,0.002,2980.0,2979.4,2.7841]
[1766335209375,0.71721938,2980.0,2979.4,2.7841]
[1766335210095,4.07296391,2980.0,2979.4,2.7841]
[1766335210609,4.07296391,2980.0,2979.0,0.438]
[1766335210610,7.42870844,2980.0,2979.2,2.7841]
[1766335212497,7.42870844,2980.0,2979.0,0.438]
[1766335213505,7.42870844,2980.0,2979.0,3.2221]
[1766335213708,0.78677084,2979.9,2979.0,0.438]
[1766335213877,0.78677084,2979.9,2979.1,2.7841]
[1766335214510,3.35592992,2979.8,2979.1,2.7841]
[1766335216316,3.35592992,2979.8,2979.0,0.438]
[1766335216485,3.35592992,2979.8,2979.2,0.7524]
[1766335216681,4.17750411,2979.8,2979.2,2.7841]
[1766335217003,3.35609675,2979.7,2979.2,2.7841]
[1766335217385,3.35582172,2979.9,2979.0,0.438]
[1766335217386,3.35592104,2979.9,2979.3,0.7524]
[1766335217599,4.07295444,2980.0,2979.0,0.438]
[1766335217798,0.002,2980.0,2979.3,2.0317]
[1766335218022,3.35771802,2980.0,2979.6,0.7524]
[1766335218236,3.35771802,2980.0,2979.7,2.0317]
[1766335218440,3.35771802,2980.0,2979.7,2.7841]
[1766335218605,0.002,2980.0,2979.1,2.7841]
[1766335218810,0.002,2980.0,2979.2,1.1201174]
[1766335219016,0.002,2980.0,2979.3,2.7841]
[1766335219196,0.002,2980.0,2979.4,0.438]
[1766335219396,0.002,2980.0,2979.5,2.7841]
[1766335219796,0.002,2980.0,2979.6,0.7524]
[1766335220021,0.002,2980.0,2979.6,2.7841]
[1766335220703,0.002,2980.0,2979.5,2.7841]
[1766335220916,0.001,2980.1,2979.8,2.0317]
[1766335221098,0.001,2980.1,2979.8,2.7841]
[1766335225739,0.001,2980.1,2979.4,0.438]
[1766335225940,0.001,2980.1,2979.5,2.9797]
[1766335227532,0.001,2980.1,2979.8,0.001]
[1766335227734,0.67218198,2980.1,2979.8,0.001]
[1766335227939,2.017,2980.0,2978.9,2.9797]
[1766335228135,6.63926687,2979.9,2978.8,0.002]
[1766335228639,6.63926687,2979.9,2978.9,2.9797]
[1766335228847,6.7120851,2979.7,2978.9,2.9797]
[1766335229042,0.438,2979.6,2978.9,2.9797]
[1766335229236,0.438,2979.6,2978.8,0.002]
[1766335229437,0.438,2979.6,2978.9,2.9797]
[1766335232348,3.35626783,2979.5,2978.9,2.9797]
[1766335234447,7.42757899,2979.5,2978.9,0.001]
[1766335235422,4.07131116,2979.5,2978.9,2.7965]
[1766335237358,7.42757899,2979.5,2978.9,2.7965]
[1766335238229,4.07131116,2979.5,2978.9,2.7965]
[1766335238759,7.42757899,2979.5,2978.9,2.7965]
[1766335239059,0.7865579,2979.4,2978.9,2.7965]
[1766335239857,3.35649313,2979.3,2978.9,0.001]
[1766335240061,0.08289261,2978.9,2978.8,0.002]
[1766335240428,0.08289261,2978.9,2978.6,0.001]
[1766335241230,0.08289261,2978.9,2978.8,0.002]
[1766335242762,0.438,2979.2,2978.8,0.002]
[1766335243065,0.438,2979.2,2978.8,2.7975]
[1766335243230,0.8961076,2979.2,2978.8,2.7975]
[1766335244658,0.8961076,2979.2,2978.9,2.7955]
[1766335244859,0.438,2979.2,2978.9,2.7955]
[1766335245039,3.357332,2979.5,2978.8,0.002]
[1766335245251,0.001,2979.5,2978.8,0.002]
[1766335245451,3.35728162,2979.5,2979.1,2.7955]
[1766335245960,0.001,2979.5,2979.1,2.7955]
[1766335246159,3.35727288,2979.5,2979.1,2.7955]
[1766335247465,0.001,2979.5,2978.8,0.44]
[1766335247641,0.001,2979.5,2979.1,2.0543]
[1766335247850,3.35571491,2980.0,2979.2,0.20543]
[1766335248039,3.35571491,2980.0,2978.9,2.7955]
[1766335248246,3.35571491,2980.0,2979.1,2.0543]
[1766335248446,3.35571491,2980.0,2979.5,2.0543]
[1766335248748,3.35571491,2980.0,2979.6,2.7955]
[1766335249272,3.35571491,2980.0,2978.8,0.44]
[1766335249455,3.35571491,2980.0,2978.9,0.50808864]
[1766335249654,0.001,2979.5,2978.9,0.50808864]
[1766335250266,0.001,2979.5,2979.0,2.7955]
[1766335250765,3.35571491,2980.0,2978.9,3.86502668]
[1766335250968,3.35571491,2980.0,2979.0,2.7955]
[1766335251186,3.35571491,2980.0,2979.3,0.7412]
[1766335251404,3.35571491,2980.0,2979.4,2.7955]
[1766335252247,3.35571491,2980.0,2979.2,0.438]
[1766335252708,4.61972814,2979.9,2978.9,0.50808864]